Cogmind - Beta 16 @@@ ROGUE MODE // 2025.11.22 @ 20:31:48 Player: nevada Result: Self-destructed Performance ------------- Evolutions (2) 1000 Regions Visited (4) 800 Robots Destroyed (2) 10 Value Destroyed (25) 25 Prototype IDs (8) 160 Alien Tech Used (0) 0 Bonus (0) 0 TOTAL SCORE: 1995 Bonus ------- None Cogmind --------- Core Integrity 550/550 Matter 225/300 Energy 100/100 System Corruption 0% Temperature Cool (0) Movement Hovering (120) Ox1 Location -8/Materials Parts ------- > --- POWER (2) -------- (None) > --- PROPULSION (4) --- Improved Hover Unit > --- UTILITY (3) ------ (None) > --- WEAPON (2) ------- EMP Blaster EMP Blaster > --- INVENTORY (5) ---- Light Ion Engine Improved Ion Engine ECM Suite Reaction Control System Recalibrator Peak State ------------ > --- POWER ------------ Light Ion Engine > --- PROPULSION ------- Hover Unit > --- UTILITY ---------- Recalibrator > --- WEAPON ----------- Improved Medium Laser Maul > --- INVENTORY -------- Light Ion Engine EM Pulse Gun EMP Blaster EMP Blaster EMP Blaster [Rating: 11] Favorites ----------- Power Light Ion Engine Engine Light Ion Engine Propulsion Wheel Leg Aluminum Leg Wheel Wheel Hover Unit Improved Hover Unit Utility Small Storage Unit Device Recalibrator Storage Small Storage Unit Weapon EM Pulse Gun Energy Gun EM Pulse Gun Energy Cannon Advanced Beam Cannon Ballistic Cannon Assault Cannon Launcher EMP Blaster Impact Weapon Maul Build | -11 -10 -9 -9 -8 ------- Run | Yrd Mat Mat Min Mat Slots Evolved 4 | . . 2 . 2 Power 1 | . . 1 . . Propulsion 2 | . . 1 . 1 Utility 1 | . . . . 1 Weapon . | . . . . . Parts Attached 20 | 3 2 9 4 2 Power 3 | . . 3 . . Engine 3 | . . 3 . . Core . | . . . . . Reactor . | . . . . . Propulsion 4 | 2 . 1 1 . Treads . | . . . . . Leg . | . . . . . Wheel 2 | 2 . . . . Hover 2 | . . 1 1 . Flight . | . . . . . Utility 3 | . 1 1 1 . Device 2 | . . 1 1 . Storage 1 | . 1 . . . Processor . | . . . . . Hackware . | . . . . . Protection . | . . . . . Artifact . | . . . . . Weapon 10 | 1 1 4 2 2 Energy Gun 5 | 1 1 2 . 1 Energy Cannon 1 | . . 1 . . Ballistic Gun . | . . . . . Ballistic Cannon 1 | . . . . 1 Launcher 2 | . . . 2 . Special Weapon . | . . . . . Impact Weapon 1 | . . 1 . . Slashing Weapon . | . . . . . Piercing Weapon . | . . . . . Special Melee Weapon . | . . . . . Unidentified Prototypes 3 | . . 2 . 1 Parts Lost 6 | . 1 5 . . Power 1 | . . 1 . . Propulsion 2 | . 1 1 . . Utility . | . . . . . Weapon 3 | . . 3 . . Highest Loss Streak 2 | . 1 2 . . To Critical Strikes . | . . . . . Average Backups 2 | 1 2 5 3 4 Power 1 | 1 1 . 1 2 Propulsion . | . . . . . Utility . | . . . . 2 Weapon . | . . 4 2 . Tool/Special . | . . . . . Unused Backups 10 | 6 2 . . 2 Power . | . . . . . Propulsion 4 | 4 . . . . Utility 1 | . . . . 1 Weapon 5 | 2 2 . . 1 Tool/Special . | . . . . . Average Slot Usage (%) 51 | . 85 49 36 29 Engine 9 | . 14 11 8 . Wheel 6 | . 28 . . . Hover 5 | . . 6 5 9 Device 5 | . . 9 7 3 Storage 3 | . 14 1 . . Energy Gun 9 | . 28 8 . . Energy Cannon 1 | . . 3 . . Launcher 6 | . . . 15 16 Impact Weapon 2 | . . 8 . . Peak Build Rating 11 | 6 7 11 11 10 Average Rating 6 | 6 6 9 7 7 On Entrance 6 | 6 6 6 6 6 Avg Prop Armor Cover (%) . | . . . . . Naked Turns . | . . . . . Heaviest Build 15 | 12 12 15 6 11 Greatest Support 20 | 20 20 10 7 7 Greatest Overweight (x) 4 | . 1 4 1 1 Average Overweight (x) . | . . 1 . . Largest Inventory Capacity 20 | 8 20 8 5 5 Average Capacity 7 | 8 8 5 5 5 Most Carried 7 | 6 6 7 5 5 Average Carried 2 | 1 2 5 3 4 Final Capacity 8 | 8 8 5 5 5 Final Carried 6 | 1 6 5 5 5 Class Distribution -------------------- 100% | Mutant Dominant Class ---------------- Mutant | -10/Materials Mutant | -9/Materials Mutant | -9/Mines Mutant | -8/Materials Resources | -11 -10 -9 -9 -8 ----------- Run | Yrd Mat Mat Min Mat Matter Collected 310 | 230 10 . 70 . Remotely . | . . . . . Salvage Created 75 | . 75 . . . Parts 5 | . 5 . . . Haulers Intercepted 1 | . 1 . . . Recyclers Shooed . | . . . . . Parts Field Recycled . | . . . . . Retrieved Matter . | . . . . . Parts Self-Destructed . | . . . . . Prevented . | . . . . . Parts Restored . | . . . . . Kills | -11 -10 -9 -9 -8 ------- Run | Yrd Mat Mat Min Mat Combat Hostiles Destroyed . | . . . . . Classes Destroyed 2 | . 2 . . . Hauler 1 | . 1 . . . Mechanic 1 | . 1 . . . Best Kill Streak 2 | . 2 . . . Combat Bots Only . | . . . . . Max Kills in Single Turn 2 | . 2 . . . Gunslinging . | . . . . . Exploded . | . . . . . Melee . | . . . . . Uniques/NPCs Destroyed . | . . . . . Combat | -11 -10 -9 -9 -8 -------- Run | Yrd Mat Mat Min Mat Hostile Shots Fired 109 | . 25 71 13 . Missed 40 | . 10 23 7 . Hits 69 | . 15 48 6 . Projectile 69 | . 15 48 6 . Critical Strikes 5 | . . 5 . . Damage Taken 967 | . 162 716 89 . Core 423 | . 42 317 64 . Absorbed by Shields . | . . . . . Core Remaining (%) 62 | 100 83 . 4 . Volleys Fired 4 | . 4 . . . Largest 2 | . 2 . . . Hottest 90 | . 90 . . . Shots Fired 9 | . 8 . 1 . Gun 8 | . 8 . . . Cannon . | . . . . . Launcher 1 | . . . 1 . Special . | . . . . . Kinetic . | . . . . . Thermal 3 | . 3 . . . Explosive . | . . . . . Electromagnetic 6 | . 5 . 1 . Robot Hit Streak 5 | . 5 . . . Robot Miss Streak 3 | . 3 . . . Penetration Max . | . . . . . Secondary Targets . | . . . . . Shots Hit Robots 5 | . 5 . . . Core Hits 3 | . 3 . . . Critical Kills . | . . . . . Critical Parts Destroyed . | . . . . . Critical Strikes . | . . . . . Melee Attacks . | . . . . . Impact . | . . . . . Slashing . | . . . . . Piercing . | . . . . . Sneak Attacks . | . . . . . Combat Hostiles . | . . . . . Follow-up Attacks . | . . . . . Damage Inflicted 150 | . 120 . 30 . Guns 65 | . 65 . . . Cannons . | . . . . . Explosions 53 | . 53 . . . Melee . | . . . . . Ramming 32 | . 2 . 30 . Kinetic . | . . . . . Thermal 77 | . 77 . . . Explosive . | . . . . . Electromagnetic 41 | . 41 . . . Impact . | . . . . . Slashing . | . . . . . Piercing . | . . . . . Highest Corruption 2 | . . 2 2 . Average Corruption 2 | . . 2 2 . Corruption Purged . | . . . . . Corruption Blocked . | . . . . . Effects 7 | . . 3 4 . Message Errors 3 | . . 2 1 . Matter Fused 1 | . . . 1 . Heat Flow Errors 1 | . . 1 . . Data Loss (minor) 1 | . . . 1 . Misfires 1 | . . . 1 . Overload Shots . | . . . . . Overflow Damage . | . . . . . Projectiles . | . . . . . Explosions . | . . . . . Melee . | . . . . . Knockbacks 2 | . . . 2 . Impact 2 | . . . 2 . Kinetic . | . . . . . Secondary . | . . . . . Self-Inflicted Damage 16 | . 1 . 15 . Shots . | . . . . . Rammed 5 | . 1 . 4 . Targets Rammed 5 | . 1 . 4 . Kicked . | . . . . . Crushed . | . . . . . Highest Temperature 151 | . 90 151 . . Average Temperature 61 | . 40 90 . . Received Heat Transfer 429 | . 90 297 42 . Siege Activations . | . . . . . Martial Activations . | . . . . . Shielding Activations . | . . . . . Robots Disrupted . | . . . . . Combat Hostiles . | . . . . . Robots Corrupted . | . . . . . Combat Hostiles . | . . . . . Parts Fried . | . . . . . Impact Corruptions . | . . . . . Robots Melted . | . . . . . Combat Hostiles . | . . . . . Parts Melted . | . . . . . Heat Transferred 174 | . 174 . . . Parts Sabotaged . | . . . . . Parts Stolen . | . . . . . Parts Stripped . | . . . . . Power Chain Reactions 1 | . 1 . . . Alert | -11 -10 -9 -9 -8 ------- Run | Yrd Mat Mat Min Mat Maximum Alert Level . | . . . . . Low Security (%) 100 | 100 100 100 100 100 Level 1 . | . . . . . Level 2 . | . . . . . Level 3 . | . . . . . Level 4 . | . . . . . Level 5 . | . . . . . High Security . | . . . . . Max Security . | . . . . . Peak Influence 45 | . 16 . 45 5 Initial 5 | . . . . 5 Average 1 | . 3 . 8 1 Influence Increases 91 | . 41 . 45 5 Destroy 0b10 Robot/NC 10 | . 10 . . . Destroy Leader 2 | . 2 . . . Successful Hack 19 | . 14 . . 5 Disable Machine 15 | . 15 . . . Lose Combat Pursuer 45 | . . . 45 . Influence Decreases 91 | . 41 . 30 20 Entered New Map 10 | . . . . 10 Time Decay 81 | . 41 . 30 10 Squads Dispatched 2 | . 2 . . . Investigation 1 | . 1 . . . Extermination . | . . . . . Reinforcement 1 | . 1 . . . Assault . | . . . . . Garrison . | . . . . . Intercept . | . . . . . Searches Triggered . | . . . . . Construction Impeded . | . . . . . Haulers Reinforced . | . . . . . Active Scanning Responses . | . . . . . Cargo Convoy Interrupts . | . . . . . Stealth | -11 -10 -9 -9 -8 --------- Run | Yrd Mat Mat Min Mat Distress Signals 1 | . 1 . . . Communications Jammed . | . . . . . Distress Signals . | . . . . . Times Spotted 21 | . 4 5 10 2 Peak Tracking Total 5 | . 3 4 5 . Tactical Retreats 3 | . . . 3 . ECM-based Alert Blocks 8 | . . . 8 . Traps | -11 -10 -9 -9 -8 ------- Run | Yrd Mat Mat Min Mat Traps Triggered 2 | . 1 1 . . Indirectly . | . . . . . Trap Hack Attempts . | . . . . . Triggered . | . . . . . Disarmed . | . . . . . Reprogrammed . | . . . . . Reused . | . . . . . Traps Extracted . | . . . . . Installed . | . . . . . Triggered . | . . . . . Machines | -11 -10 -9 -9 -8 ---------- Run | Yrd Mat Mat Min Mat Machines Disabled 1 | . 1 . . . Max in Single Turn 1 | . 1 . . . Machines Repaired . | . . . . . Machines Dismantled . | . . . . . Machines Sabotaged . | . . . . . Overloaded Fab Kills . | . . . . . Hacking | -11 -10 -9 -9 -8 --------- Run | Yrd Mat Mat Min Mat Machines Accessed 7 | . 3 3 . 1 Terminals 4 | . 1 2 . 1 Fabricators . | . . . . . Repair Stations 1 | . 1 . . . Recycling Units 2 | . 1 1 . . Scanalyzers . | . . . . . Garrison Access . | . . . . . Total Hacks 16 | . 4 11 . 1 Successful 12 | . 3 8 . 1 Failed 4 | . 1 3 . . Catastrophic . | . . . . . Database Lockouts . | . . . . . Manual . | . . . . . Terminals 12 | . 1 10 . 1 Fabricators . | . . . . . Repair Stations 2 | . 2 . . . Recycling Units 2 | . 1 1 . . Scanalyzers . | . . . . . Garrison Access . | . . . . . Terminal Hacks 9 | . 1 7 . 1 Record 2 | . . 2 . . Robot Analysis 1 | . . 1 . . Prototype ID Bank 3 | . 1 1 . 1 Alert Level 1 | . . 1 . . Dispatch Records 1 | . . 1 . . Maintenance Status 1 | . . 1 . . Fabricator Hacks . | . . . . . Repair Station Hacks 1 | . 1 . . . Scan Component 1 | . 1 . . . Recycling Unit Hacks 2 | . 1 1 . . Retrieve Components 2 | . 1 1 . . Scanalyzer . | . . . . . Garrison Access Hacks . | . . . . . Unauthorized Hacks . | . . . . . Terminals . | . . . . . Fabricators . | . . . . . Repair Stations . | . . . . . Recycling Units . | . . . . . Scanalyzers . | . . . . . Garrison Access . | . . . . . Data Cores Recovered . | . . . . . Used . | . . . . . Hacking Detections 5 | . 3 2 . . Full Trace Events . | . . . . . Feedback Events . | . . . . . Feedback Blocked . | . . . . . Robot Schematics Acquired . | . . . . . Robots Built . | . . . . . Authchips . | . . . . . Time . | . . . . . Total Robot Build Rating . | . . . . . Part Schematics Acquired . | . . . . . Parts Built . | . . . . . Authchips . | . . . . . Time . | . . . . . Total Part Build Rating . | . . . . . Part Studies Acquired . | . . . . . Parts Repaired . | . . . . . Time . | . . . . . Parts Recycled . | . . . . . Recycled Matter . | . . . . . Retrieved Matter . | . . . . . Retrieved Components 6 | . 3 3 . . Parts Scanalyzed . | . . . . . Part Schematics Acquired . | . . . . . Parts Damaged . | . . . . . Bothacking | -11 -10 -9 -9 -8 ------------ Run | Yrd Mat Mat Min Mat Used RIF Installer . | . . . . . Robots Hacked . | . . . . . Non-combat . | . . . . . Combat . | . . . . . Robot Hacks Applied . | . . . . . Relay Couplers Released . | . . . . . Fabnet Peak Effective % . | . . . . . Robots Rewired . | . . . . . Allies Hacked . | . . . . . Hacks Repelled . | . . . . . Allies | -11 -10 -9 -9 -8 -------- Run | Yrd Mat Mat Min Mat Total Allies 1 | . . . 1 . Largest Group 1 | . . . 1 . Highest-Rated Group 31 | . . . 31 . Highest-Rated Ally 31 | . . . 31 . Total Orders . | . . . . . Ally Attacks 6 | . . . 6 . Total Damage 86 | . . . 86 . Kills . | . . . . . Allies Corrupted . | . . . . . Allies Melted . | . . . . . Intel | -11 -10 -9 -9 -8 ------- Run | Yrd Mat Mat Min Mat Active Infowar (turns) 78 | . . . 59 19 ECM 78 | . . . 59 19 Robot Analysis Total 1 | . . 1 . . Derelict Logs Recovered . | . . . . . Drone Launches . | . . . . . Drone Recoveries . | . . . . . Exploration | -11 -10 -9 -9 -8 ------------- Run | Yrd Mat Mat Min Mat Turns Passed 2634 | 1757 206 290 247 134 Spaces Moved 901 | 185 217 206 205 88 Core 61 | . . 48 13 . Treads . | . . . . . Legs . | . . . . . Wheels 413 | 185 217 11 . . Hover 427 | . . 147 192 88 Flight . | . . . . . Fastest Speed 60 | 80 80 60 60 60 Average Speed 90 | 80 80 126 62 115 Slowest Speed 250 | 80 95 250 100 120 Overloaded Moves . | . . . . . Propulsion Burnouts . | . . . . . Robots Hopped . | . . . . . Potential Cave-ins . | . . . . . Cave-ins Triggered . | . . . . . Exploration Rate (%) 32 | 21 36 43 53 9 Regions Visited 4 Branch Regions 1 Pre-discovered Areas . | . . . . . Known Exits Taken . | . . . . . Unknown Exits Taken 4 | 1 1 1 1 . Scrap Searched 1 | . . . 1 . Spaces Dug . | . . . . . Terrain Destroyed . | . . . . . Melee . | . . . . . Projectile . | . . . . . AOE . | . . . . . Terrain Rammed . | . . . . . Walls Destroyed . | . . . . . Machines Disabled . | . . . . . Actions | -11 -10 -9 -9 -8 --------- Run | Yrd Mat Mat Min Mat Total 2715 | 1794 241 235 324 121 Wait 1754 | 1602 8 14 105 25 Move 897 | 184 216 205 204 88 Hop . | . . . . . Pick Up 10 | . 7 1 1 1 Fast Attach 8 | . . 4 2 2 Attach 8 | . 1 3 3 1 Detach 7 | . 1 2 3 1 Swap 6 | 3 1 2 . . Drop 16 | 5 2 4 2 3 Fire 4 | . 4 . . . Melee . | . . . . . Ram 5 | . 1 . 4 . Kick . | . . . . . Crush . | . . . . . Escape Stasis . | . . . . . Rewire . | . . . . . Trap . | . . . . . Miscellaneous . | . . . . . Route ------- -11/Scrapyard -10/Materials -9/Materials -9/Mines -8/Materials History --------- Turn | Location | Event 8 | -11/Scrapyard | Discovered new exit (range 3) 1758 | -11/Scrapyard | Entered Materials 1759 | -10/Materials | Build established: Mutant 1759 | -10/Materials | Met a group of wandering Federalists 1944 | -10/Materials | Discovered new exit (range 12) 1964 | -10/Materials | Entered another Materials area 1964 | -9/Materials | Evolved 2 slots: Power x1, Propulsion x1 2234 | -9/Materials | Core integrity fell below 50% 2244 | -9/Materials | Discovered new exit (range 7) 2254 | -9/Materials | Entered Mines 2395 | -9/Mines | Received a Mining Laser from a helpful Derelict 2447 | -9/Mines | Core integrity fell below 20% 2498 | -9/Mines | Discovered new exit (range 4) 2501 | -9/Mines | Entered Materials 2501 | -8/Materials | Evolved 2 slots: Propulsion x1, Utility x1 2635 | -8/Materials | Self-destructed Last Messages --------------- 02482_ R-06 Scavenger knocked back. 02483_ Slammed into R-06 Scavenger. 02490_ R-06 Scavenger knocked back. 02498_ EXIT=FOUND PARAMETERS=PROPULSION+1,UTILITY+1 LOCATION=UNKNOWN GOAL=ESCAPE 02505_ Acquired Assault Cannon. 02515_ Dropped Assault Cannon. 02516_ Acquired Prototype Energy Gun. 02516_ Identified Adv. Beam Rifle. 02517_ Dropped Adv. Beam Rifle. 02567_ Connecting with Terminal... 02567_ Current location identified: Materials >>Prototypes Downloading prototype IDs... Cld. Deuterium Engine Cld. Ion Engine 02567_ Dropped EMP Blaster. 02573_ Acquired Reaction Control System. Map ----- +----------------------------------------------------+ | ???????????????????????????????????????? | | ???????????????????????????????????????? | | ???????????????????????????????????????? | | ???????????????????????????????????????? | | ???????????????????????????????????????? | | ???????????????????????????????????????? | | ???????????????????????????????????????? | | ???????????????????????????????????????? | | ???????????????????????????????????????? | | ???????????????????????????????????????? | | ???????????????????????????????????????? | | ???????????????????????????????????????? | | ???????????????????????????????????????? | | ???????????????????????????????????????? | | ??????????##########???????????????????? | | ??????????# #???????????????????? | | ??????????# """ #???????????????????? | | ??????????# """ #???????????????????? | | ??????????# """ #???????????????????? | | ??????????# #???????????????????? | | ??????????# """ #???????????????????? | | ??????????# """ #???????????????????? | | ??????????# """ #??? ???????????????? | | ??????????# #??!????????????????? | | ??????????#####/####? ?????????????????? | | ????????????# @ ###+#######??????????? | | ????????????# ??????????? | | ????????????# [ ?????????? | | ????????????# gg?????????? | | ????????????# ###+########?????????? | | ????????????## ##????????????????????? | | ?????????????# #?????????????????????? | | ?????????????# #?????????????????????? | | ????########## #?????????????????????? | | ????# # #?????????????????????? | | ????# """ # #?????????????????????? | | ????# """ # #?????????????????????? | | ????# """ # #?????????????????????? | | ????# + #?????????????????????? | | ????# # #?????????????????????? | | ????# ] # #?????????????????????? | | ????# "T" # #?????????????????????? | | ????# """ # #?????????????????????? | | ???########### #?????????????????????? | | ???# [# #?????????????????????? | | ???# ]# #?????????????????????? | | ???# """ """ # #?????????????????????? | | ???# """ """ + #?????????????????????? | | ???# """ """ # #?????????????????????? | | ???# # #?????????????????????? | +----------------------------------------------------+ Best States ------------- Heat Dissipation 31 Energy Generation 17 Energy Capacity 290 Matter Stores 300 Matter Capacity 300 Sight Range 16 Terrain Scan Density 10 ECM Strength 1 Evasion (%) 53 Item Schematics ----------------- None Robot Schematics ------------------ None Fabricated ------------ Nothing Repaired ---------- Nothing Studied --------- None Alien Tech Used ----------------- None Achievements -------------- None Challenges ------------ None Game ------ Seed SmallSubdwellerSuit Manual? 0 Play Time 00:13:27 Cumulative 21.2 hours Start 2025.11.22 @ 20:19:35 End 2025.11.22 @ 20:31:48 Sessions 1 Manual Loads 0 Difficulty Rogue Special Mode None Game No. 77 Rogue 73 Adventurer 4 Explorer 0 Win Type - Total 0 Types 0/0/0/0/0/0/0/0/0/0 Lore% 15 Gallery% 20 Achievement% 14 Wizard Run 0 Options --------- Layout 0 ASCII 0 Keyboard 0 Movement Mouse Keybinds 1 Fullscreen 2 Font 18/SmallcapsGlow Map View 76x50 Zoom Use 0% Tactical HUD 1 Map Filters NONE Filters NONE Steam 1 RUN: 06e1d935-b961-45df-98f1-a19939759dd8